[Event "Nordic-chT Scholastic 2019"]
[Site "Stockholm"]
[Date "2019.09.07"]
[Round "4.1"]
[White "Mitra, Akash"]
[Black "Stefansson, Vignir Vatnar"]
[Result "0-1"]
[ECO "A04"]
[WhiteElo "1928"]
[BlackElo "2316"]
[Annotator "ChessBase"]
[PlyCount "72"]
[EventDate "2019.09.05"]
[EventType "team-tourn"]
[EventCountry "SWE"]
[SourceTitle "playchess.com"]
[Source "ChessBase"]
[SourceQuality "1"]
[TimeControl "5400+30"]

1. Nf3 {[%emt 0:00:26]} f5 {[%emt 0:00:00]} 2. d4 {[%emt 0:00:20]} Nf6 {[%emt 0:00:00]} 3. Bg5 {[%emt 0:00:42]} e6 {[%emt 0:00:00]} 4. c4 {[%emt 0:00:21]} Be7 {[%emt 0:00:46]} 5. Nc3 {[%emt 0:00:13]} O-O {[%emt 0:00:21]} 6. Qc2 {[%emt 0:00:22]} b6 {[%emt 0:03:11]} 7. e4 {[%emt 0:01:24]} fxe4 {[%emt 0:00:11]} 8. Nxe4 {[%emt 0:00:20]} Bb7 {[%emt 0:02:28]} 9. Bd3 {[%emt 0:01:53]} Nxe4 {[%emt 0:01:06]} 10. Bxe7 {[%emt 0:00:50]} Qxe7 {[%emt 0:00:09]} 11. Bxe4 {[%emt 0:00:08]} Bxe4 {[%emt 0:00:28]} 12. Qxe4 {[%emt 0:00:04]} Qb4+ {[%emt 0:00:22]} 13. Nd2 {[%emt 0:00:24]} Nc6 {[%emt 0:00:11]} 14. Rb1 {[%emt 0:01:49]} Qd6 {[%emt 0:03:49]} 15. d5 {[%emt 0:04:48]} exd5 {[%emt 0:00:25]} 16. Qxd5+ {[%emt 0:00:11]} Qxd5 17. cxd5 {[%emt 0:00:15]} Rae8+ {[%emt 0:00:11]} 18. Kf1 {[%emt 0:00:12]} Nb4 {[%emt 0:00:09]} 19. f3 {[%emt 0:00:30]} Nxd5 {[%emt 0:00:14]} 20. Kf2 {[%emt 0:00:48]} Nf4 {[%emt 0:00:06]} 21. Ne4 {[%emt 0:01:20]} d5 {[%emt 0:00:29]} 22. Nc3 {[%emt 0:00:07]} d4 {[%emt 0:01:51]} 23. Ne4 {[%emt 0:00:10]} c5 {[%emt 0:00:17]} 24. Rhd1 {[%emt 0:00:43]} g5 {[%emt 0:01:29]} 25. g3 {[%emt 0:04:27]} Nd5 {[%emt 0:01:07]} 26. Nxg5 {[%emt 0:00:51]} Re3 {[%emt 0:00:12]} 27. f4 {[%emt 0:00:59]} Nxf4 {[%emt 0:00:36]} 28. gxf4 {[%emt 0:00:29]} Rxf4+ {[%emt 0:00:05]} 29. Kg1 {[%emt 0:00:48]} Rg4+ {[%emt 0:00:04]} 30. Kf2 {[%emt 0:00:16]} Rxg5 {[%emt 0:00:04]} 31. Rg1 {[%emt 0:00:08]} Rxg1 {[%emt 0:00:10]} 32. Rxg1+ {[%emt 0:00:07]} Kf7 {[%emt 0:00:03]} 33. Rg4 {[%emt 0:00:51]} Rh3 {[%emt 0:00:21]} 34. Kg2 {[%emt 0:00:04]} Rd3 {[%emt 0:00:03]} 35. Rh4 {[%emt 0:00:23]} Rd2+ {[%emt 0:00:05]} 36. Kg3 {[%emt 0:00:03]} Kg6 {[%emt 0:00:08]} 0-1

[Event "Nordic-chT Scholastic 2019"]
[Site "Stockholm"]
[Date "2019.09.07"]
[Round "4.2"]
[White "Briem, Stephan"]
[Black "Salah Eldin, Youssef"]
[Result "1-0"]
[ECO "D06"]
[WhiteElo "2204"]
[BlackElo "2047"]
[Annotator "ChessBase"]
[PlyCount "39"]
[EventDate "2019.09.05"]
[EventType "team-tourn"]
[EventCountry "SWE"]
[SourceTitle "playchess.com"]
[Source "ChessBase"]
[SourceQuality "1"]
[TimeControl "5400+30"]

1. d4 {[%emt 0:00:00]} d5 {[%emt 0:00:00]} 2. c4 {[%emt 0:00:00]} Bf5 {[%emt 0:01:26]} 3. cxd5 {[%emt 0:00:17]} Qxd5 {[%emt 0:00:10]} 4. Nc3 {[%emt 0:00:06]} Qd8 {[%emt 0:01:00]} 5. e4 {[%emt 0:00:08]} Bg6 {[%emt 0:03:13]} 6. Nf3 {[%emt 0:00:16]} Nf6 {[%emt 0:00:21]} 7. Bc4 {[%emt 0:03:14]} Bh5 {[%emt 0:03:00]} 8. e5 {[%emt 0:01:51]} Ng8 {[%emt 0:00:53]} 9. e6 {[%emt 0:00:42]} fxe6 {[%emt 0:00:39]} 10. Bxe6 {[%emt 0:00:13]} Nf6 {[%emt 0:00:32]} 11. Ne5 {[%emt 0:00:48]} Qd6 {[%emt 0:03:56]} 12. Qb3 {[%emt 0:02:57]} Qxd4 {[%emt 0:05:33]} 13. Nf7 {[%emt 0:01:07]} Bxf7 {[%emt 0:01:04]} 14. Bxf7+ {[%emt 0:00:05]} Kd8 {[%emt 0:00:37]} 15. Be3 {[%emt 0:00:32]} Qe5 {[%emt 0:01:02]} 16. Qxb7 {[%emt 0:00:18]} Ng4 {[%emt 0:03:28]} 17. O-O-O+ {[%emt 0:00:05]} Qd6 {[%emt 0:01:01]} 18. Qxa8 {[%emt 0:00:07]} Kd7 {[%emt 0:00:58]} 19. Qxb8 {[%emt 0:00:09]} g6 {[%emt 0:01:19]} 20. Qe8# {[%emt 0:00:05]} 1-0

[Event "Nordic-chT Scholastic 2019"]
[Site "Stockholm"]
[Date "2019.09.07"]
[Round "4.5"]
[White "Bergan, Gaute"]
[Black "Skovgaard, Andreas"]
[Result "0-1"]
[ECO "B22"]
[WhiteElo "1862"]
[BlackElo "1976"]
[Annotator "NA"]
[PlyCount "76"]
[EventDate "2019.09.05"]
[EventType "team-tourn"]
[EventCountry "SWE"]
[SourceTitle "playchess.com"]
[Source "ChessBase"]
[SourceQuality "1"]
[TimeControl "5400+30"]

1. e4 {[%emt 0:00:00]} c5 {[%emt 0:00:00]} 2. c3 {[%emt 0:00:00]} d5 {[%emt 0:01:44]} 3. exd5 {[%emt 0:01:11]} Qxd5 {[%emt 0:01:26]} 4. d4 {[%emt 0:00:11]} Bf5 {[%emt 0:04:21]} 5. Nf3 {[%emt 0:02:48]} e6 {[%emt 0:05:13]} 6. Bb5+ {[%emt 0:22:22]} Nc6 {[%emt 0:00:59]} 7. O-O {[%emt 0:00:47]} cxd4 {[%emt 0:03:02]} 8. c4 {[%emt 0:01:09]} Qc5 {[%emt 0:01:20]} 9. Nxd4 {[%emt 0:02:06]} O-O-O {[%emt 0:02:12]} 10. Bxc6 {[%emt 0:10:21]} Rxd4 {[%emt 0:03:20]} 11. Bxb7+ {[%emt 0:04:34]} Kxb7 {[%emt 0:00:37]} 12. Qb3+ {[%emt 0:01:18]} Qb4 {[%emt 0:01:20]} 13. Qf3+ {[%emt 0:00:46]} Kb8 {[%emt 0:00:39]} 14. Be3 {[%emt 0:03:56]} Rxc4 {[%emt 0:02:02]} 15. Na3 {[%emt 0:04:44]} Re4 {[%emt 0:02:22]} 16. Rad1 {[%emt 0:13:56]} Be7 {[%emt 0:06:50]} 17. Rd3 {[%emt 0:07:38]} Qa5 {[%emt 0:18:02]} 18. Rb3+ {[%emt 0:00:32]} Ka8 {[%emt 0:00:43]} 19. Nc4 {[%emt 0:07:24]} Qd5 {[%emt 0:01:50]} 20. Rc1 {[%emt 0:02:21]} Nf6 {[%emt 0:03:39]} 21. Nb6+ {[%emt 0:09:25]} axb6 {[%emt 0:01:01]} 22. Rxb6 {[%emt 0:00:46]} Ra4 {[%emt 0:08:49]} 23. Qe2 {[%emt 0:02:04]} Bd3 {[%emt 0:03:57]} 24. Qd1 {[%emt 0:00:35]} Ra5 {[%emt 0:05:13]} 25. Rc3 {[%emt 0:01:03]} Rd8 {[%emt 0:01:46]} 26. Qc1 {[%emt 0:00:20]} Bc4 {[%emt 0:01:12]} 27. h3 {[%emt 0:00:36]} Qd1+ {[%emt 0:00:42]} 28. Qxd1 {[%emt 0:00:15]} Rxd1+ {[%emt 0:00:22]} 29. Kh2 {[%emt 0:00:03]} Nd5 {[%emt 0:02:13]} 30. Rxc4 {[%emt 0:00:47]} Nxb6 {[%emt 0:00:18]} 31. Bxb6 {[%emt 0:00:06]} Bd6+ {[%emt 0:00:29]} 32. g3 {[%emt 0:00:17]} Rxa2 {[%emt 0:00:10]} 33. b4 {[%emt 0:00:22]} Rb2 {[%emt 0:00:43]} 34. Be3 {[%emt 0:00:57]} Rxb4 {[%emt 0:00:21]} 35. Rc6 {[%emt 0:00:46]} Rb3 {[%emt 0:00:33]} 36. Ra6+ {[%emt 0:00:07]} Kb8 {[%emt 0:00:18]} 37. Rxd6 {[%emt 0:00:23]} Rxd6 {[%emt 0:00:09]} 38. Bf4 {[%emt 0:00:03]} Kc7 {[%emt 0:00:14]} 0-1

[Event "Nordic-chT Scholastic 2019"]
[Site "Stockholm"]
[Date "2019.09.07"]
[Round "4.6"]
[White "Skovgaard, Emil"]
[Black "Lazareva, Emilie"]
[Result "1-0"]
[ECO "C78"]
[WhiteElo "1729"]
[BlackElo "1319"]
[Annotator "NA"]
[PlyCount "69"]
[EventDate "2019.09.05"]
[EventType "team-tourn"]
[EventCountry "SWE"]
[SourceTitle "playchess.com"]
[Source "ChessBase"]
[SourceQuality "1"]
[TimeControl "5400+30"]

1. e4 {[%emt 0:00:00]} e5 {[%emt 0:00:00]} 2. Nf3 {[%emt 0:00:21]} Nc6 {[%emt 0:00:19]} 3. Bb5 {[%emt 0:00:20]} a6 {[%emt 0:01:04]} 4. Ba4 {[%emt 0:00:48]} Nf6 {[%emt 0:01:39]} 5. O-O {[%emt 0:01:34]} b5 {[%emt 0:01:15]} 6. Bb3 {[%emt 0:00:07]} Bc5 {[%emt 0:01:46]} 7. c3 {[%emt 0:07:03]} O-O 8. d4 {[%emt 0:03:12]} exd4 {[%emt 0:09:02]} 9. cxd4 {[%emt 0:00:05]} Bb6 {[%emt 0:00:29]} 10. e5 {[%emt 0:07:48]} Ne8 {[%emt 0:05:56]} 11. Bg5 {[%emt 0:12:44]} Ne7 {[%emt 0:00:27]} 12. Nc3 {[%emt 0:02:24]} c6 {[%emt 0:03:17]} 13. d5 {[%emt 0:04:24]} d6 {[%emt 0:04:14]} 14. dxc6 {[%emt 0:07:43]} Qc7 {[%emt 0:06:43]} 15. Bxe7 {[%emt 0:01:45]} Qxe7 {[%emt 0:01:16]} 16. Nd5 {[%emt 0:00:39]} Qd8 {[%emt 0:01:53]} 17. Nxb6 {[%emt 0:07:04]} Qxb6 {[%emt 0:01:25]} 18. exd6 {[%emt 0:00:33]} Be6 {[%emt 0:03:36]} 19. Bxe6 {[%emt 0:04:41]} fxe6 {[%emt 0:00:35]} 20. Rc1 {[%emt 0:01:26]} Qd8 {[%emt 0:03:10]} 21. c7 {[%emt 0:02:20]} Qd7 {[%emt 0:06:39]} 22. c8=Q {[%emt 0:01:10]} Rxc8 {[%emt 0:01:43]} 23. Rxc8 {[%emt 0:00:12]} Qxc8 {[%emt 0:00:53]} 24. d7 {[%emt 0:00:15]} Qd8 {[%emt 0:01:11]} 25. dxe8=Q {[%emt 0:00:35]} Qxe8 {[%emt 0:01:02]} 26. Re1 {[%emt 0:00:54]} Rf6 {[%emt 0:01:33]} 27. h3 {[%emt 0:06:52]} Qc6 {[%emt 0:02:37]} 28. Qe2 {[%emt 0:01:43]} Qd5 {[%emt 0:01:33]} 29. a3 {[%emt 0:00:50]} h6 {[%emt 0:01:17]} 30. Qe5 {[%emt 0:05:04]} Qd7 {[%emt 0:04:20]} 31. Nd4 {[%emt 0:01:49]} Kf7 {[%emt 0:01:55]} 32. Rc1 {[%emt 0:00:47]} Qe8 {[%emt 0:02:12]} 33. Rc7+ {[%emt 0:00:47]} Kg8 {[%emt 0:01:51]} 34. Nf5 {[%emt 0:03:44]} Rf7 {[%emt 0:06:32]} 35. Nd6 1-0

[Event "Nordic-chT Scholastic 2019"]
[Site "Stockholm"]
[Date "2019.09.07"]
[Round "4.7"]
[White "Nickelsen, Emil"]
[Black "Kraemmer, Kischichiro"]
[Result "0-1"]
[ECO "C50"]
[WhiteElo "1286"]
[BlackElo "1591"]
[Annotator "NA"]
[PlyCount "26"]
[EventDate "2019.09.05"]
[EventType "team-tourn"]
[EventCountry "SWE"]
[SourceTitle "playchess.com"]
[Source "ChessBase"]
[SourceQuality "1"]
[TimeControl "5400+30"]

1. e4 {[%emt 0:00:00]} e5 {[%emt 0:00:00]} 2. Nf3 {[%emt 0:00:00]} Nc6 {[%emt 0:00:00]} 3. d4 {[%emt 0:00:00]} exd4 {[%emt 0:00:00]} 4. Bc4 {[%emt 0:00:00]} Be7 {[%emt 0:01:46]} 5. Nxd4 {[%emt 0:00:09]} Nf6 {[%emt 0:02:44]} 6. Nc3 {[%emt 0:00:16]} Ne5 {[%emt 0:01:00]} 7. Bb3 {[%emt 0:00:47]} d6 {[%emt 0:00:24]} 8. Nf3 {[%emt 0:00:55]} Bg4 {[%emt 0:00:41]} 9. Be3 {[%emt 0:01:56]} Nfd7 {[%emt 0:06:17]} 10. h3 {[%emt 0:01:04]} Nxf3+ {[%emt 0:00:24]} 11. gxf3 {[%emt 0:00:11]} Bh5 {[%emt 0:00:07]} 12. Nd5 {[%emt 0:02:05]} Ne5 {[%emt 0:00:56]} 13. Qd2 {[%emt 0:04:21]} Nxf3+ 0-1

[Event "Nordic-chT Scholastic 2019"]
[Site "Stockholm"]
[Date "2019.09.07"]
[Round "4.9"]
[White "Falkevall, Axel"]
[Black "Burgaard, Kristian Gade"]
[Result "1-0"]
[ECO "B22"]
[WhiteElo "2000"]
[BlackElo "1586"]
[Annotator "NA"]
[PlyCount "89"]
[EventDate "2019.09.05"]
[EventType "team-tourn"]
[EventCountry "SWE"]
[SourceTitle "playchess.com"]
[Source "ChessBase"]
[SourceQuality "1"]
[TimeControl "5400+30"]

1. e4 {[%emt 0:00:00]} c5 {[%emt 0:00:00]} 2. c3 {[%emt 0:00:00]} Nf6 {[%emt 0:00:00]} 3. e5 {[%emt 0:00:00]} Nd5 {[%emt 0:00:00]} 4. d4 {[%emt 0:00:00]} cxd4 {[%emt 0:00:10]} 5. Nf3 {[%emt 0:00:00]} Nc6 {[%emt 0:00:23]} 6. cxd4 {[%emt 0:00:00]} (6. Bc4 $5 {[%cal Rc4d5]} Nb6 7. Bb3 $11) 6... g6 {[%emt 0:02:45]} (6... d6 $11) 7. Bc4 {[%emt 0:06:58]} Nb6 {[%emt 0:00:36]} 8. Bb3 {[%emt 0:01:46]} Bg7 {[%emt 0:02:27]} 9. O-O {[%emt 0:03:10]} d6 {[%emt 0:01:35]} 10. Qe2 {[%emt 0:06:21]} O-O {[%emt 0:03:05]} 11. h3 {[%emt 0:04:22]} Bf5 {[%emt 0:06:17]} 12. Rd1 {[%emt 0:06:13]} Qc7 {[%emt 0:05:36]} 13. Bf4 {[%emt 0:05:11]} dxe5 {[%emt 0:05:05]} 14. dxe5 {[%emt 0:03:24]} Rad8 {[%emt 0:07:33]} 15. Rxd8 {[%emt 0:04:01]} Rxd8 {[%emt 0:03:41]} 16. Bxf7+ {[%emt 0:03:36]} Kh8 {[%emt 0:07:33]} 17. Bb3 {[%emt 0:06:58]} Nd4 $16 {[%emt 0:08:49]} 18. Nxd4 {[%emt 0:07:39]} Rxd4 {[%emt 0:00:30]} 19. Be3 {[%emt 0:02:37]} Qxe5 {[%emt 0:09:19]} 20. Nc3 {[%emt 0:03:05]} Rd6 {[%emt 0:08:59]} 21. Qf3 {[%emt 0:04:48]} Rc6 {[%emt 0:08:35]} 22. Rd1 {[%emt 0:03:46]} Qc7 {[%emt 0:04:20]} 23. g4 {[%emt 0:06:14]} Be6 {[%emt 0:01:51]} 24. Nb5 {[%emt 0:03:12]} Qb8 {[%emt 0:00:58]} 25. Bf4 {[%emt 0:08:57]} Qf8 {[%emt 0:06:09]} 26. Be5 {[%emt 0:05:10]} Rc8 {[%emt 0:03:56]} 27. Qxf8+ {[%emt 0:00:19]} Rxf8 {[%emt 0:00:18]} 28. Bxg7+ {[%emt 0:00:11]} Kxg7 {[%emt 0:00:05]} 29. Bxe6 {[%emt 0:00:12]} Rf6 {[%emt 0:00:46]} 30. Bb3 {[%emt 0:00:26]} a6 {[%emt 0:00:49]} 31. Nc7 {[%emt 0:00:13]} Rc6 {[%emt 0:01:43]} 32. Nd5 {[%emt 0:00:27]} Nxd5 {[%emt 0:00:20]} 33. Rxd5 {[%emt 0:00:07]} Rc7 {[%emt 0:00:59]} 34. Kg2 {[%emt 0:00:48]} h6 {[%emt 0:00:29]} 35. Kf3 {[%emt 0:00:27]} Rc6 {[%emt 0:00:53]} 36. Rd7 {[%emt 0:00:16]} Rf6+ {[%emt 0:00:05]} 37. Kg2 {[%emt 0:00:07]} b5 {[%emt 0:00:29]} 38. Rxe7+ {[%emt 0:00:12]} Kf8 {[%emt 0:00:13]} 39. Re6 {[%emt 0:00:51]} Rxe6 {[%emt 0:00:39]} 40. Bxe6 {[%emt 0:00:08]} Ke7 {[%emt 0:00:05]} 41. Bc8 {[%emt 0:00:13]} a5 {[%emt 0:00:01]} 42. Ba6 {[%emt 0:00:17]} b4 {[%emt 0:00:11]} 43. Kf3 {[%emt 0:00:09]} g5 {[%emt 0:00:53]} 44. Ke4 {[%emt 0:00:05]} Ke6 {[%emt 0:00:02]} 45. Bc4+ {[%emt 0:00:11] Kd5+} 1-0

[Event "Nordic-chT Scholastic 2019"]
[Site "Stockholm"]
[Date "2019.09.07"]
[Round "4.10"]
[White "Heiberg, Clara"]
[Black "Grahn, Vidar"]
[Result "1-0"]
[ECO "B36"]
[WhiteElo "1483"]
[BlackElo "1962"]
[Annotator "NA"]
[PlyCount "55"]
[EventDate "2019.09.05"]
[EventType "team-tourn"]
[EventCountry "SWE"]
[SourceTitle "playchess.com"]
[Source "ChessBase"]
[SourceQuality "1"]
[TimeControl "5400+30"]

1. e4 {[%emt 0:00:00]} c5 {[%emt 0:00:00]} 2. Nf3 {[%emt 0:00:00]} Nc6 {[%emt 0:00:00]} 3. d4 {[%emt 0:00:00]} cxd4 {[%emt 0:00:00]} 4. Nxd4 {[%emt 0:00:00]} g6 {[%emt 0:00:00]} 5. c4 {[%emt 0:00:00]} Nf6 {[%emt 0:00:00]} 6. Nc3 {[%emt 0:00:13]} d6 {[%emt 0:00:01]} 7. Be3 {[%emt 0:00:21]} (7. Be2 $14) 7... Ng4 $1 {[%emt 0:00:04]} 8. Bg5 {[%emt 0:02:16] [#]} (8. Nxc6 $11 bxc6 9. Bc1) 8... Qb6 $1 {[%emt 0:00:21] Double Attack} 9. Be3 {[%emt 0:12:06]} Nxe3 {[%emt 0:02:54]} 10. fxe3 {[%emt 0:00:08]} Qxb2 {[%emt 0:11:14]} 11. Nd5 {[%emt 0:12:30]} Kd8 {[%emt 0:02:07]} 12. Rb1 $1 {[%emt 0:03:22]} Qa3 {[%emt 0:02:24]} 13. Qd2 {[%emt 0:01:36]} e6 {[%emt 0:09:21]} 14. Rb3 {[%emt 0:07:34]} Qa4 {[%emt 0:00:55]} 15. Nxc6+ {[%emt 0:15:42]} bxc6 {[%emt 0:01:25]} 16. Qb2 {[%emt 0:04:01]} e5 {[%emt 0:03:19]} 17. Ra3 $18 {[%emt 0:01:04]} Qxa3 {[%emt 0:02:21]} 18. Qxa3 {[%emt 0:00:11]} cxd5 {[%emt 0:00:12]} 19. Qa5+ {[%emt 0:02:55]} Ke8 {[%emt 0:00:29]} 20. cxd5 {[%emt 0:03:45]} Bd7 {[%emt 0:03:17]} 21. Bb5 {[%emt 0:01:37]} Bh6 {[%emt 0:00:59]} 22. Bxd7+ {[%emt 0:01:03]} Kxd7 {[%emt 0:00:09]} 23. Qb5+ {[%emt 0:02:49]} Ke7 {[%emt 0:01:13]} 24. Qb7+ {[%emt 0:00:59]} Kf6 {[%emt 0:00:07]} 25. Rf1+ {[%emt 0:00:42]} Kg5 {[%emt 0:00:16]} 26. Qe7+ {[%emt 0:00:20]} Kh5 {[%emt 0:00:18]} 27. Rf3 {[%emt 0:10:24]} Bg5 {[%emt 0:01:01]} 28. Rh3+ {[%emt 0:01:04]} 1-0

[Event "Nordic-chT Scholastic 2019"]
[Site "Stockholm"]
[Date "2019.09.08"]
[Round "5.1"]
[White "Stefansson, Vignir Vatnar"]
[Black "Bergan, Gaute"]
[Result "1-0"]
[ECO "D10"]
[WhiteElo "2316"]
[BlackElo "1862"]
[Annotator "NA"]
[PlyCount "67"]
[EventDate "2019.09.05"]
[EventType "team-tourn"]
[EventCountry "SWE"]
[SourceTitle "playchess.com"]
[Source "ChessBase"]
[SourceQuality "1"]
[TimeControl "5400+30"]

1. d4 {[%emt 0:00:00]} d5 {[%emt 0:00:00]} 2. c4 {[%emt 0:00:06]} c6 {[%emt 0:00:00]} 3. Nc3 {[%emt 0:00:12]} Nf6 {[%emt 0:00:23]} 4. cxd5 {[%emt 0:00:07]} cxd5 {[%emt 0:00:06]} 5. f3 {[%emt 0:00:06]} Nc6 {[%emt 0:03:46]} 6. e4 {[%emt 0:00:30]} dxe4 {[%emt 0:00:06]} 7. d5 {[%emt 0:00:08]} Ne5 {[%emt 0:00:25]} 8. fxe4 {[%emt 0:00:08]} g6 {[%emt 0:03:24]} 9. Bf4 {[%emt 0:02:30]} Nfd7 {[%emt 0:00:43]} 10. Nf3 {[%emt 0:04:47]} Bg7 {[%emt 0:00:49]} 11. Bb5 {[%emt 0:01:42]} O-O {[%emt 0:00:27]} 12. Bxd7 {[%emt 0:00:20]} Nxf3+ {[%emt 0:00:27]} 13. Qxf3 {[%emt 0:00:07]} Bxd7 {[%emt 0:00:09]} 14. e5 {[%emt 0:00:47]} Rc8 {[%emt 0:04:19]} 15. O-O {[%emt 0:01:01]} Qb6+ {[%emt 0:01:50]} 16. Rf2 {[%emt 0:00:45]} h6 {[%emt 0:01:38]} 17. Re1 {[%emt 0:03:36]} Bf5 {[%emt 0:07:52]} 18. h3 {[%emt 0:04:32]} Qa6 {[%emt 0:08:43]} 19. Qe3 {[%emt 0:01:19]} Kh7 {[%emt 0:00:33]} 20. g4 {[%emt 0:00:27]} Bd3 {[%emt 0:01:32]} 21. Rd1 {[%emt 0:01:29]} Bc4 {[%emt 0:01:26]} 22. b3 {[%emt 0:00:10]} Bb5 {[%emt 0:00:06]} 23. Ne4 {[%emt 0:01:03]} Qb6 {[%emt 0:03:53]} 24. a4 {[%emt 0:02:48]} Bd7 {[%emt 0:01:15]} 25. Qd3 {[%emt 0:01:36]} Qa6 {[%emt 0:05:27]} 26. Qg3 {[%emt 0:03:35]} f5 {[%emt 0:07:27]} 27. exf6 {[%emt 0:01:17]} exf6 {[%emt 0:00:08]} 28. Bd6 {[%emt 0:09:55]} Rf7 {[%emt 0:01:25]} 29. g5 {[%emt 0:01:35]} f5 {[%emt 0:04:30]} 30. gxh6 {[%emt 0:01:24]} Bxh6 {[%emt 0:00:46]} 31. Qh4 {[%emt 0:02:12]} Kg8 {[%emt 0:02:09]} 32. Qxh6 {[%emt 0:00:38]} fxe4 {[%emt 0:00:36]} 33. Rxf7 {[%emt 0:00:10]} Kxf7 {[%emt 0:00:05]} 34. Qh7+ {[%emt 0:00:07]} 1-0

[Event "Nordic-chT Scholastic 2019"]
[Site "Stockholm"]
[Date "2019.09.08"]
[Round "5.2"]
[White "Lazareva, Emilie"]
[Black "Briem, Stephan"]
[Result "0-1"]
[ECO "B01"]
[WhiteElo "1319"]
[BlackElo "2204"]
[Annotator "NA"]
[PlyCount "86"]
[EventDate "2019.09.05"]
[EventType "team-tourn"]
[EventCountry "SWE"]
[SourceTitle "playchess.com"]
[Source "ChessBase"]
[SourceQuality "1"]
[TimeControl "5400+30"]

1. e4 {[%emt 0:00:00]} d5 {[%emt 0:00:00]} 2. e5 {[%emt 0:01:33]} c5 {[%emt 0:00:13]} 3. c3 {[%emt 0:01:03]} Nc6 {[%emt 0:00:27]} 4. d4 {[%emt 0:00:39]} Bf5 {[%emt 0:00:52]} 5. a3 {[%emt 0:03:07]} e6 {[%emt 0:01:01]} 6. Nf3 {[%emt 0:01:13]} Qb6 {[%emt 0:01:02]} 7. Be2 {[%emt 0:03:12]} Nge7 {[%emt 0:05:48]} 8. O-O {[%emt 0:02:02]} cxd4 {[%emt 0:00:55]} 9. cxd4 {[%emt 0:03:08]} Be4 {[%emt 0:02:35]} 10. Qa4 {[%emt 0:04:27]} Nf5 {[%emt 0:01:50]} 11. Rd1 {[%emt 0:05:35]} Bxf3 {[%emt 0:01:53]} 12. Bxf3 {[%emt 0:00:40]} Nfxd4 {[%emt 0:00:14]} 13. Nd2 {[%emt 0:08:40]} Bc5 {[%emt 0:01:19]} 14. Rf1 {[%emt 0:01:37]} O-O {[%emt 0:00:51]} 15. b4 {[%emt 0:01:30]} Nxf3+ {[%emt 0:01:35]} 16. Nxf3 {[%emt 0:03:20]} Bd4 {[%emt 0:00:15]} 17. Rb1 {[%emt 0:03:37]} Nxe5 {[%emt 0:01:50]} 18. Nxe5 {[%emt 0:01:09]} Bxe5 {[%emt 0:00:07]} 19. Qb3 {[%emt 0:01:13]} Rac8 {[%emt 0:00:25]} 20. Bd2 {[%emt 0:02:18]} Rc4 {[%emt 0:00:09]} 21. Rfe1 {[%emt 0:03:18]} Bd4 {[%emt 0:02:19]} 22. Be3 {[%emt 0:01:49]} Rfc8 {[%emt 0:00:30]} 23. h3 {[%emt 0:02:22]} Rc3 {[%emt 0:00:45]} 24. Bxd4 {[%emt 0:00:53]} Qxd4 {[%emt 0:00:31]} 25. Qb2 {[%emt 0:01:39]} Qf4 {[%emt 0:00:52]} 26. Rbd1 {[%emt 0:03:19]} Rc2 {[%emt 0:01:35]} 27. Qd4 {[%emt 0:00:17]} Qxd4 {[%emt 0:00:06]} 28. Rxd4 {[%emt 0:00:21]} Rc1 {[%emt 0:00:07]} 29. Rdd1 {[%emt 0:00:53]} Rxd1 {[%emt 0:00:08]} 30. Rxd1 {[%emt 0:00:13]} Kf8 {[%emt 0:00:02]} 31. Kf1 {[%emt 0:00:49]} Ke7 {[%emt 0:00:05]} 32. g3 {[%emt 0:01:56]} Kd6 {[%emt 0:00:06]} 33. Re1 {[%emt 0:00:32]} e5 {[%emt 0:00:08]} 34. Kg2 {[%emt 0:02:18]} e4 {[%emt 0:00:07]} 35. Re2 {[%emt 0:00:52]} Rc3 {[%emt 0:00:09]} 36. Re3 {[%emt 0:01:06]} Rxe3 {[%emt 0:00:12]} 37. fxe3 {[%emt 0:00:09]} d4 {[%emt 0:00:08]} 38. exd4 {[%emt 0:01:01]} Kd5 {[%emt 0:00:04]} 39. Kf2 {[%emt 0:00:12]} Kxd4 {[%emt 0:00:03]} 40. Ke2 {[%emt 0:00:22]} b5 {[%emt 0:00:05]} 41. g4 {[%emt 0:00:38]} g5 {[%emt 0:00:04]} 42. Kd2 {[%emt 0:01:13]} e3+ {[%emt 0:00:04]} 43. Ke2 {[%emt 0:00:18]} Ke5 0-1

[Event "Nordic-chT Scholastic 2019"]
[Site "Stockholm"]
[Date "2019.09.08"]
[Round "5.3"]
[White "Heidarsson, Arnar Milutin"]
[Black "Buxrud, Fredrik Berg"]
[Result "1-0"]
[ECO "D00"]
[WhiteElo "1756"]
[BlackElo "1224"]
[Annotator "NA"]
[PlyCount "59"]
[EventDate "2019.09.05"]
[EventType "team-tourn"]
[EventCountry "SWE"]
[SourceTitle "playchess.com"]
[Source "ChessBase"]
[SourceQuality "1"]
[TimeControl "5400+30"]

1. d4 d5 {[%emt 0:00:00]} 2. Nc3 {[%emt 0:00:00]} Nf6 {[%emt 0:00:00]} 3. Bf4 {[%emt 0:00:00]} c6 {[%emt 0:00:27]} 4. e3 {[%emt 0:00:03]} Bf5 {[%emt 0:00:19]} 5. f3 {[%emt 0:00:16]} e6 {[%emt 0:00:50]} 6. g4 {[%emt 0:02:27]} Bg6 {[%emt 0:00:51]} 7. h4 {[%emt 0:00:43]} h6 {[%emt 0:00:16]} 8. h5 {[%emt 0:00:17]} Bh7 {[%emt 0:00:09]} 9. Bd3 {[%emt 0:00:17]} Bxd3 {[%emt 0:00:26]} 10. Qxd3 {[%emt 0:00:23]} Qb6 {[%emt 0:00:59]} 11. O-O-O {[%emt 0:00:23]} Nbd7 {[%emt 0:01:39]} 12. Nge2 {[%emt 0:04:30]} Rc8 {[%emt 0:03:03]} 13. e4 {[%emt 0:04:25]} dxe4 {[%emt 0:01:19]} 14. Nxe4 {[%emt 0:00:52]} c5 {[%emt 0:03:31]} 15. Nxf6+ {[%emt 0:08:28]} Nxf6 {[%emt 0:00:25]} 16. dxc5 {[%emt 0:06:44]} Qxc5 {[%emt 0:01:21]} 17. Be3 {[%emt 0:04:37]} Qc6 {[%emt 0:01:58]} 18. Nd4 {[%emt 0:01:09]} Qa4 {[%emt 0:02:52]} 19. Kb1 {[%emt 0:05:59]} Bc5 {[%emt 0:02:23]} 20. Nb3 {[%emt 0:12:55]} Bxe3 {[%emt 0:00:57]} 21. Qxe3 {[%emt 0:00:53]} Nd5 {[%emt 0:01:47]} 22. Rxd5 {[%emt 0:01:14]} O-O {[%emt 0:00:44]} 23. Rd2 {[%emt 0:00:11]} b6 {[%emt 0:05:58]} 24. g5 {[%emt 0:01:06]} hxg5 {[%emt 0:00:58]} 25. Qxg5 {[%emt 0:00:30]} f6 {[%emt 0:02:19]} 26. Qg6 {[%emt 0:00:54]} Qf4 {[%emt 0:00:48]} 27. Rd7 {[%emt 0:00:44]} Qh6 {[%emt 0:00:38]} 28. Qxh6 {[%emt 0:00:35]} gxh6 {[%emt 0:00:07]} 29. Rg1+ {[%emt 0:00:29]} Kh8 {[%emt 0:00:08]} 30. Rgg7 {[%emt 0:00:10]} 1-0